[Event "Titled Tuesday Blitz May 03 Early 2022"]
[White "Melikhov, Evgeny V."]
[Black "Gottstein, Claudius-Thomas"]
[WhiteFideId "4122046"]
[BlackFideId "4653327"]
[WhiteElo "1931"]
[BlackElo "2109"]
[Result "1/2-1/2"]
[Round "04"]
[TimeControl "180+1"]
[Date "2022.05.03"]
[WhiteClock "0:01:25"]
[BlackClock "0:01:22"]

1. d4 {[%clk 0:03:00]}  d5 {[%clk 0:02:59]} 2. c4 {[%clk 0:03:00]}  Bf5 {[%clk 0:03:00]} 3. cxd5 {[%clk 0:02:59]}  Bxb1 {[%clk 0:02:59]} 4. Qa4+ {[%clk 0:02:58]}  c6 {[%clk 0:02:59]} 5. Rxb1 {[%clk 0:02:57]}  Qxd5 {[%clk 0:02:58]} 6. Nf3 {[%clk 0:02:56]}  Nd7 {[%clk 0:02:58]} 7. Qc2 {[%clk 0:02:53]}  Qxa2 {[%clk 0:02:53]} 8. e3 {[%clk 0:02:47]}  e6 {[%clk 0:02:53]} 9. Bc4 {[%clk 0:02:45]}  Bb4+ {[%clk 0:02:52]} 10. Bd2 {[%clk 0:02:43]}  Bxd2+ {[%clk 0:02:52]} 11. Nxd2 {[%clk 0:02:42]}  Qa5 {[%clk 0:02:51]} 12. b4 {[%clk 0:02:39]}  Qc7 {[%clk 0:02:48]} 13. O-O {[%clk 0:02:36]}  Ngf6 {[%clk 0:02:48]} 14. e4 {[%clk 0:02:36]}  O-O {[%clk 0:02:45]} 15. e5 {[%clk 0:02:36]}  Nd5 {[%clk 0:02:45]} 16. Ne4 {[%clk 0:02:36]}  N7b6 {[%clk 0:02:44]} 17. Nd6 {[%clk 0:02:35]}  Nxc4 {[%clk 0:02:41]} 18. Qxc4 {[%clk 0:02:34]}  a6 {[%clk 0:02:21]} 19. Rfc1 {[%clk 0:02:31]}  Qd7 {[%clk 0:02:21]} 20. Rb3 {[%clk 0:02:26]}  Rfd8 {[%clk 0:02:19]} 21. Rg3 {[%clk 0:02:25]}  Qe7 {[%clk 0:02:12]} 22. Qe2 {[%clk 0:02:06]}  Rxd6 {[%clk 0:02:09]} 23. exd6 {[%clk 0:02:05]}  Qxd6 {[%clk 0:02:10]} 24. Qg4 {[%clk 0:02:04]}  g6 {[%clk 0:02:09]} 25. h4 {[%clk 0:02:04]}  Qf4 {[%clk 0:01:53]} 26. Qxf4 {[%clk 0:01:49]}  Nxf4 {[%clk 0:01:54]} 27. Kf1 {[%clk 0:01:48]}  Nd5 {[%clk 0:01:49]} 28. Rb1 {[%clk 0:01:45]}  h5 {[%clk 0:01:45]} 29. Rd3 {[%clk 0:01:43]}  Rd8 {[%clk 0:01:41]} 30. g3 {[%clk 0:01:42]}  Nc7 {[%clk 0:01:39]} 31. Kg2 {[%clk 0:01:38]}  Nb5 {[%clk 0:01:39]} 32. Rbd1 {[%clk 0:01:38]}  Kg7 {[%clk 0:01:37]} 33. f3 {[%clk 0:01:35]}  f5 {[%clk 0:01:34]} 34. Kf2 {[%clk 0:01:32]}  Kf6 {[%clk 0:01:34]} 35. Ke3 {[%clk 0:01:31]}  Nc7 {[%clk 0:01:32]} 36. Rb1 {[%clk 0:01:28]}  Nd5+ {[%clk 0:01:33]} 37. Kf2 {[%clk 0:01:27]}  Nc7 {[%clk 0:01:23]} 38. Ke3 {[%clk 0:01:25]}  Nd5+ {[%clk 0:01:22]} 39. Kf2 {[%clk 0:01:25]}  Nc7 {[%clk 0:01:22]} 40. Ke3 {[%clk 0:01:25]} 1/2-1/2


[Site "https://www.chess.com"]

[Event "Titled Tuesday Blitz May 03 Early 2022"]
[White "Menna Barreto, Felipe Kubiaki"]
[Black "Liyanage, Ranindu Dilshan"]
[WhiteFideId "2119757"]
[BlackFideId "9915834"]
[WhiteElo "2261"]
[BlackElo "1858"]
[Result "0-1"]
[Round "04"]
[TimeControl "180+1"]
[Date "2022.05.03"]
[WhiteClock "0:00:31"]
[BlackClock "0:00:12"]

1. Nf3 {[%clk 0:03:00]}  Nf6 {[%clk 0:02:59]} 2. d4 {[%clk 0:03:00]}  e6 {[%clk 0:03:00]} 3. Bg5 {[%clk 0:02:59]}  d5 {[%clk 0:03:01]} 4. e3 {[%clk 0:02:59]}  Nbd7 {[%clk 0:02:57]} 5. Nbd2 {[%clk 0:02:55]}  h6 {[%clk 0:02:57]} 6. Bh4 {[%clk 0:02:51]}  c5 {[%clk 0:02:57]} 7. c3 {[%clk 0:02:52]}  b6 {[%clk 0:02:57]} 8. a4 {[%clk 0:02:48]}  a6 {[%clk 0:02:55]} 9. Bd3 {[%clk 0:02:46]}  Bb7 {[%clk 0:02:53]} 10. Qb1 {[%clk 0:02:42]}  Be7 {[%clk 0:02:48]} 11. O-O {[%clk 0:02:41]}  O-O {[%clk 0:02:46]} 12. h3 {[%clk 0:02:41]}  Re8 {[%clk 0:02:44]} 13. Bg3 {[%clk 0:02:38]}  c4 {[%clk 0:02:34]} 14. Bc2 {[%clk 0:02:34]}  b5 {[%clk 0:02:35]} 15. axb5 {[%clk 0:02:31]}  axb5 {[%clk 0:02:36]} 16. Rxa8 {[%clk 0:02:31]}  Qxa8 {[%clk 0:02:37]} 17. Ne5 {[%clk 0:02:20]}  Nb6 {[%clk 0:02:29]} 18. f4 {[%clk 0:01:53]}  b4 {[%clk 0:02:27]} 19. f5 {[%clk 0:01:49]}  exf5 {[%clk 0:02:25]} 20. Bxf5 {[%clk 0:01:49]}  Na4 {[%clk 0:02:20]} 21. cxb4 {[%clk 0:01:36]}  Bxb4 {[%clk 0:02:21]} 22. Ndf3 {[%clk 0:01:34]}  Ba6 {[%clk 0:02:14]} 23. Bh4 {[%clk 0:01:28]}  Be7 {[%clk 0:02:10]} 24. Qc2 {[%clk 0:01:05]}  Bb5 {[%clk 0:01:27]} 25. Bxf6 {[%clk 0:00:58]}  Bxf6 {[%clk 0:01:26]} 26. Bh7+ {[%clk 0:00:58]}  Kf8 {[%clk 0:01:23]} 27. Nxf7 {[%clk 0:00:50]}  Kxf7 {[%clk 0:01:14]} 28. Bg6+ {[%clk 0:00:49]}  Kg8 {[%clk 0:01:09]} 29. Bxe8 {[%clk 0:00:41]}  Qxe8 {[%clk 0:01:10]} 30. Qf5 {[%clk 0:00:33]}  Qxe3+ {[%clk 0:00:59]} 31. Kh1 {[%clk 0:00:31]}  Qe4 {[%clk 0:00:42]} 32. Qc8+ {[%clk 0:00:31]}  Kh7 {[%clk 0:00:35]} 33. Qb7 {[%clk 0:00:31]}  Qe2 {[%clk 0:00:20]} 34. Re1 {[%clk 0:00:29]}  Qxb2 {[%clk 0:00:20]} 35. Qc8 {[%clk 0:00:28]}  Qc2 {[%clk 0:00:17]} 36. Qb8 {[%clk 0:00:27]}  Bd7 {[%clk 0:00:16]} 37. Ne5 {[%clk 0:00:28]}  Bf5 {[%clk 0:00:08]} 38. Nf7 {[%clk 0:00:27]}  Be4 {[%clk 0:00:07]} 39. Qg3 {[%clk 0:00:26]}  Nc3 {[%clk 0:00:05]} 40. Ne5 {[%clk 0:00:26]}  Ne2 {[%clk 0:00:04]} 41. Rxe2 {[%clk 0:00:25]}  Qxe2 {[%clk 0:00:04]} 42. Ng4 {[%clk 0:00:26]}  Qxg2+ {[%clk 0:00:04]} 43. Qxg2 {[%clk 0:00:25]}  Bxg2+ {[%clk 0:00:05]} 44. Kxg2 {[%clk 0:00:26]}  Bxd4 {[%clk 0:00:06]} 45. Kf3 {[%clk 0:00:26]}  Bf6 {[%clk 0:00:06]} 46. Ke2 {[%clk 0:00:26]}  Kg6 {[%clk 0:00:07]} 47. Kd2 {[%clk 0:00:26]}  d4 {[%clk 0:00:07]} 48. Nf2 {[%clk 0:00:26]}  Kf5 {[%clk 0:00:07]} 49. Ke2 {[%clk 0:00:25]}  d3+ {[%clk 0:00:07]} 50. Kd2 {[%clk 0:00:25]}  Bd4 {[%clk 0:00:07]} 51. Nxd3 {[%clk 0:00:24]}  cxd3 {[%clk 0:00:07]} 52. Kxd3 {[%clk 0:00:25]}  Bf6 {[%clk 0:00:07]} 53. Ke2 {[%clk 0:00:26]}  Kf4 {[%clk 0:00:08]} 54. Kf2 {[%clk 0:00:26]}  Bd4+ {[%clk 0:00:07]} 55. Kg2 {[%clk 0:00:27]}  Kg5 {[%clk 0:00:08]} 56. Kh2 {[%clk 0:00:27]}  Kh4 {[%clk 0:00:09]} 57. Kg2 {[%clk 0:00:27]}  Be5 {[%clk 0:00:10]} 58. Kh1 {[%clk 0:00:27]}  Kxh3 {[%clk 0:00:10]} 59. Kg1 {[%clk 0:00:28]}  g5 {[%clk 0:00:10]} 60. Kh1 {[%clk 0:00:29]}  g4 {[%clk 0:00:11]} 61. Kg1 {[%clk 0:00:29]}  g3 {[%clk 0:00:11]} 62. Kh1 {[%clk 0:00:30]}  g2+ {[%clk 0:00:11]} 63. Kg1 {[%clk 0:00:31]}  Bd4# {[%clk 0:00:12]} 0-1


[Site "https://www.chess.com"]

[Event "Titled Tuesday Blitz May 03 Early 2022"]
[White "Moiseenko, Alexander"]
[Black "Hakobyan, Aram"]
[WhiteFideId "14102560"]
[BlackFideId "13306677"]
[WhiteElo "2577"]
[BlackElo "2557"]
[Result "1-0"]
[Round "04"]
[TimeControl "180+1"]
[Date "2022.05.03"]
[WhiteClock "0:00:10"]
[BlackClock "0:00:17"]

1. d4 {[%clk 0:03:00]}  d5 {[%clk 0:03:00]} 2. c4 {[%clk 0:03:00]}  e6 {[%clk 0:03:00]} 3. Nc3 {[%clk 0:03:00]}  Nf6 {[%clk 0:03:01]} 4. cxd5 {[%clk 0:03:00]}  exd5 {[%clk 0:03:01]} 5. Bg5 {[%clk 0:03:00]}  c6 {[%clk 0:03:02]} 6. e3 {[%clk 0:03:01]}  Bf5 {[%clk 0:03:03]} 7. Qf3 {[%clk 0:03:00]}  Bg6 {[%clk 0:03:04]} 8. Bxf6 {[%clk 0:03:00]}  Qxf6 {[%clk 0:03:04]} 9. Qxf6 {[%clk 0:03:00]}  gxf6 {[%clk 0:03:05]} 10. Nf3 {[%clk 0:03:00]}  Nd7 {[%clk 0:03:03]} 11. Kd2 {[%clk 0:02:56]}  Nb6 {[%clk 0:03:03]} 12. Bd3 {[%clk 0:02:55]}  a5 {[%clk 0:03:00]} 13. Nh4 {[%clk 0:02:53]}  a4 {[%clk 0:02:58]} 14. Ne2 {[%clk 0:02:43]}  Bb4+ {[%clk 0:02:57]} 15. Kc2 {[%clk 0:02:43]}  Nc4 {[%clk 0:02:55]} 16. Ng3 {[%clk 0:02:35]}  a3 {[%clk 0:02:50]} 17. b3 {[%clk 0:02:33]}  Nb2 {[%clk 0:02:50]} 18. Bf5 {[%clk 0:02:32]}  Ke7 {[%clk 0:02:29]} 19. Rac1 {[%clk 0:02:22]}  Rhe8 {[%clk 0:02:21]} 20. Ne2 {[%clk 0:02:01]}  Kf8 {[%clk 0:02:15]} 21. g4 {[%clk 0:01:55]}  Rad8 {[%clk 0:02:03]} 22. h3 {[%clk 0:01:54]}  b6 {[%clk 0:02:03]} 23. Nf4 {[%clk 0:01:36]}  c5 {[%clk 0:02:03]} 24. Nd3 {[%clk 0:01:34]}  Nxd3 {[%clk 0:01:54]} 25. Kxd3 {[%clk 0:01:32]}  Ke7 {[%clk 0:01:42]} 26. Rc2 {[%clk 0:01:19]}  Kd6 {[%clk 0:01:42]} 27. Rd1 {[%clk 0:01:10]}  Re7 {[%clk 0:01:42]} 28. Ke2 {[%clk 0:01:07]}  Rc7 {[%clk 0:01:41]} 29. dxc5+ {[%clk 0:00:56]}  bxc5 {[%clk 0:01:42]} 30. e4 {[%clk 0:00:51]}  d4 {[%clk 0:01:39]} 31. Kd3 {[%clk 0:00:43]}  Kc6 {[%clk 0:01:25]} 32. f3 {[%clk 0:00:36]}  Kb5 {[%clk 0:01:21]} 33. Rc4 {[%clk 0:00:35]}  Rd6 {[%clk 0:00:51]} 34. Rdc1 {[%clk 0:00:34]}  Bc3 {[%clk 0:00:47]} 35. Rd1 {[%clk 0:00:24]}  Rd8 {[%clk 0:00:37]} 36. Kc2 {[%clk 0:00:23]}  Bb4 {[%clk 0:00:38]} 37. Kd3 {[%clk 0:00:23]}  Rc6 {[%clk 0:00:37]} 38. Rdc1 {[%clk 0:00:22]}  Rcd6 {[%clk 0:00:36]} 39. Rd1 {[%clk 0:00:21]}  Bc3 {[%clk 0:00:36]} 40. Rc1 {[%clk 0:00:21]}  Kb6 {[%clk 0:00:37]} 41. Rd1 {[%clk 0:00:21]}  Ra8 {[%clk 0:00:36]} 42. Rc1 {[%clk 0:00:21]}  Ra5 {[%clk 0:00:36]} 43. Rd1 {[%clk 0:00:22]}  Rb5 {[%clk 0:00:37]} 44. Rc1 {[%clk 0:00:22]}  Rd8 {[%clk 0:00:36]} 45. Rd1 {[%clk 0:00:22]}  Ra8 {[%clk 0:00:34]} 46. Rc1 {[%clk 0:00:22]}  Bb2 {[%clk 0:00:32]} 47. Rd1 {[%clk 0:00:20]}  Rxb3+ {[%clk 0:00:32]} 48. axb3 {[%clk 0:00:20]}  a2 {[%clk 0:00:33]} 49. Ra4 {[%clk 0:00:11]}  Rxa4 {[%clk 0:00:32]} 50. bxa4 {[%clk 0:00:11]}  a1=Q {[%clk 0:00:31]} 51. Rxa1 {[%clk 0:00:12]}  Bxa1 {[%clk 0:00:32]} 52. Kc4 {[%clk 0:00:12]}  Ka5 {[%clk 0:00:31]} 53. Ng2 {[%clk 0:00:10]}  Kxa4 {[%clk 0:00:29]} 54. Nf4 {[%clk 0:00:10]}  Bc3 {[%clk 0:00:21]} 55. Nd3 {[%clk 0:00:09]}  Ka3 {[%clk 0:00:19]} 56. Nxc5 {[%clk 0:00:09]}  Kb2 {[%clk 0:00:19]} 57. Kd3 {[%clk 0:00:09]}  Kc1 {[%clk 0:00:18]} 58. Nd7 {[%clk 0:00:08]}  Kd1 {[%clk 0:00:18]} 59. Nxf6 {[%clk 0:00:08]}  Ke1 {[%clk 0:00:19]} 60. Nxh7 {[%clk 0:00:08]}  Kf2 {[%clk 0:00:18]} 61. Bxg6 {[%clk 0:00:07]}  fxg6 {[%clk 0:00:19]} 62. f4 {[%clk 0:00:08]}  Kg3 {[%clk 0:00:19]} 63. f5 {[%clk 0:00:08]}  gxf5 {[%clk 0:00:20]} 64. exf5 {[%clk 0:00:08]}  Kxh3 {[%clk 0:00:20]} 65. g5 {[%clk 0:00:07]}  Bd2 {[%clk 0:00:14]} 66. g6 {[%clk 0:00:08]}  Bh6 {[%clk 0:00:15]} 67. f6 {[%clk 0:00:08]}  Kg4 {[%clk 0:00:15]} 68. g7 {[%clk 0:00:09]}  Bxg7 {[%clk 0:00:15]} 69. fxg7 {[%clk 0:00:09]}  Kh5 {[%clk 0:00:16]} 70. g8=Q {[%clk 0:00:09]}  Kh6 {[%clk 0:00:17]} 71. Qg5+ {[%clk 0:00:10]}  Kxh7 {[%clk 0:00:17]} 72. Kxd4 {[%clk 0:00:10]} 1-0


[Site "https://www.chess.com"]

[Event "Titled Tuesday Blitz May 03 Early 2022"]
[White "Nagy, Gabor"]
[Black "Avramidou, Anastasia"]
[WhiteFideId "737119"]
[BlackFideId "4239873"]
[WhiteElo "2534"]
[BlackElo "2183"]
[Result "1-0"]
[Round "04"]
[TimeControl "180+1"]
[Date "2022.05.03"]
[WhiteClock "0:02:25"]
[BlackClock "0:01:09"]

1. e4 {[%clk 0:03:00]}  c6 {[%clk 0:02:59]} 2. d4 {[%clk 0:02:58]}  d5 {[%clk 0:02:59]} 3. Nd2 {[%clk 0:02:58]}  dxe4 {[%clk 0:02:59]} 4. Nxe4 {[%clk 0:02:59]}  Nf6 {[%clk 0:02:59]} 5. Ng5 {[%clk 0:02:54]}  h6 {[%clk 0:02:42]} 6. N5f3 {[%clk 0:02:54]}  Bg4 {[%clk 0:02:40]} 7. h3 {[%clk 0:02:52]}  Bh5 {[%clk 0:02:39]} 8. g4 {[%clk 0:02:52]}  Bg6 {[%clk 0:02:39]} 9. Ne5 {[%clk 0:02:52]}  Be4 {[%clk 0:02:29]} 10. f3 {[%clk 0:02:47]}  Bd5 {[%clk 0:02:29]} 11. c4 {[%clk 0:02:46]}  Be6 {[%clk 0:02:29]} 12. f4 {[%clk 0:02:46]}  Nbd7 {[%clk 0:01:39]} 13. f5 {[%clk 0:02:43]}  Nxe5 {[%clk 0:01:39]} 14. fxe6 {[%clk 0:02:35]}  Ng6 {[%clk 0:01:34]} 15. Nf3 {[%clk 0:02:28]}  fxe6 {[%clk 0:01:21]} 16. Bd3 {[%clk 0:02:27]}  Qd6 {[%clk 0:01:09]} 17. Bxg6+ {[%clk 0:02:25]} 1-0


[Site "https://www.chess.com"]

[Event "Titled Tuesday Blitz May 03 Early 2022"]
[White "Nayak, Rajesh"]
[Black "Eynullayev, Atilla"]
[WhiteFideId "35017152"]
[BlackFideId "13413570"]
[WhiteElo "1998"]
[BlackElo "1936"]
[Result "0-1"]
[Round "04"]
[TimeControl "180+1"]
[Date "2022.05.03"]
[WhiteClock "0:01:53"]
[BlackClock "0:02:36"]

1. e4 {[%clk 0:02:58]}  c5 {[%clk 0:03:00]} 2. Nf3 {[%clk 0:02:57]}  d6 {[%clk 0:03:01]} 3. d4 {[%clk 0:02:57]}  cxd4 {[%clk 0:03:02]} 4. Nxd4 {[%clk 0:02:58]}  Nf6 {[%clk 0:03:02]} 5. Nc3 {[%clk 0:02:58]}  a6 {[%clk 0:03:03]} 6. Bg5 {[%clk 0:02:57]}  Nbd7 {[%clk 0:03:03]} 7. f4 {[%clk 0:02:53]}  Qc7 {[%clk 0:03:02]} 8. Qf3 {[%clk 0:02:52]}  h6 {[%clk 0:03:02]} 9. Bh4 {[%clk 0:02:51]}  g5 {[%clk 0:03:03]} 10. fxg5 {[%clk 0:02:48]}  hxg5 {[%clk 0:03:03]} 11. Bxg5 {[%clk 0:02:43]}  Qc5 {[%clk 0:03:04]} 12. Be3 {[%clk 0:02:41]}  Ne5 {[%clk 0:03:05]} 13. Qe2 {[%clk 0:02:40]}  Neg4 {[%clk 0:03:05]} 14. Bg1 {[%clk 0:02:38]}  Bh6 {[%clk 0:03:06]} 15. h3 {[%clk 0:02:37]}  Bf4 {[%clk 0:02:40]} 16. Nf5 {[%clk 0:02:21]}  Qb4 {[%clk 0:02:38]} 17. Bd4 {[%clk 0:02:01]}  Bxf5 {[%clk 0:02:37]} 18. Bxf6 {[%clk 0:01:58]}  Nxf6 {[%clk 0:02:36]} 19. exf5 {[%clk 0:01:53]}  Qxb2 {[%clk 0:02:36]} 0-1


[Site "https://www.chess.com"]

[Event "Titled Tuesday Blitz May 03 Early 2022"]
[White "Nguyen, Hong Anh"]
[Black "Melaugh, Shane"]
[WhiteFideId "12406732"]
[BlackFideId "2509580"]
[WhiteElo "2016"]
[BlackElo "1972"]
[Result "1-0"]
[Round "04"]
[TimeControl "180+1"]
[Date "2022.05.03"]
[WhiteClock "0:00:14"]
[BlackClock "0:00:03"]

1. d4 {[%clk 0:02:59]}  e6 {[%clk 0:03:00]} 2. Nf3 {[%clk 0:03:00]}  f5 {[%clk 0:03:00]} 3. g3 {[%clk 0:02:59]}  Nf6 {[%clk 0:03:00]} 4. Bg2 {[%clk 0:03:00]}  Be7 {[%clk 0:03:01]} 5. O-O {[%clk 0:03:01]}  O-O {[%clk 0:03:02]} 6. c4 {[%clk 0:03:01]}  d6 {[%clk 0:03:03]} 7. Nc3 {[%clk 0:03:02]}  Ne4 {[%clk 0:03:04]} 8. Qd3 {[%clk 0:02:53]}  d5 {[%clk 0:03:03]} 9. Ne5 {[%clk 0:02:47]}  c6 {[%clk 0:03:02]} 10. f3 {[%clk 0:02:41]}  Nxc3 {[%clk 0:03:02]} 11. Qxc3 {[%clk 0:02:40]}  Nd7 {[%clk 0:03:02]} 12. Nd3 {[%clk 0:02:39]}  Nf6 {[%clk 0:02:57]} 13. Nf2 {[%clk 0:02:37]}  c5 {[%clk 0:02:45]} 14. Rd1 {[%clk 0:02:27]}  dxc4 {[%clk 0:02:39]} 15. Qxc4 {[%clk 0:02:17]}  cxd4 {[%clk 0:02:32]} 16. Rxd4 {[%clk 0:02:06]}  Qb6 {[%clk 0:02:32]} 17. b4 {[%clk 0:01:49]}  Kh8 {[%clk 0:02:27]} 18. a3 {[%clk 0:01:37]}  e5 {[%clk 0:02:27]} 19. Rd1 {[%clk 0:01:33]}  Be6 {[%clk 0:02:27]} 20. Qc3 {[%clk 0:01:31]}  e4 {[%clk 0:02:20]} 21. Be3 {[%clk 0:01:29]}  Qb5 {[%clk 0:02:13]} 22. fxe4 {[%clk 0:01:25]}  Nxe4 {[%clk 0:01:58]} 23. Nxe4 {[%clk 0:01:18]}  fxe4 {[%clk 0:01:58]} 24. Bd4 {[%clk 0:01:02]}  Bf6 {[%clk 0:01:56]} 25. Qe3 {[%clk 0:00:55]}  Bf5 {[%clk 0:01:39]} 26. Rac1 {[%clk 0:00:46]}  Bg6 {[%clk 0:01:35]} 27. Rc5 {[%clk 0:00:44]}  Qa4 {[%clk 0:01:32]} 28. Rdc1 {[%clk 0:00:37]}  Bxd4 {[%clk 0:01:28]} 29. Qxd4 {[%clk 0:00:37]}  Qxa3 {[%clk 0:01:29]} 30. Rc7 {[%clk 0:00:38]}  Rg8 {[%clk 0:01:22]} 31. Ra1 {[%clk 0:00:28]}  Qb3 {[%clk 0:01:16]} 32. Rxb7 {[%clk 0:00:28]}  Rad8 {[%clk 0:01:13]} 33. Qxa7 {[%clk 0:00:25]}  Rd1+ {[%clk 0:01:10]} 34. Bf1 {[%clk 0:00:19]}  Rxa1 {[%clk 0:00:59]} 35. Qxa1 {[%clk 0:00:19]}  Qe3+ {[%clk 0:01:00]} 36. Kg2 {[%clk 0:00:19]}  Bf5 {[%clk 0:00:54]} 37. Qe5 {[%clk 0:00:18]}  Bc8 {[%clk 0:00:52]} 38. Rc7 {[%clk 0:00:18]}  Qb6 {[%clk 0:00:44]} 39. Qc5 {[%clk 0:00:17]}  Qe6 {[%clk 0:00:38]} 40. e3 {[%clk 0:00:17]}  Rd8 {[%clk 0:00:34]} 41. Kg1 {[%clk 0:00:16]}  h6 {[%clk 0:00:32]} 42. Qc3 {[%clk 0:00:16]}  Rg8 {[%clk 0:00:24]} 43. Bc4 {[%clk 0:00:15]}  Qg4 {[%clk 0:00:17]} 44. Bxg8 {[%clk 0:00:15]}  Qd1+ {[%clk 0:00:17]} 45. Kf2 {[%clk 0:00:15]}  Qf3+ {[%clk 0:00:14]} 46. Ke1 {[%clk 0:00:15]}  Qh1+ {[%clk 0:00:11]} 47. Ke2 {[%clk 0:00:15]}  Qf3+ {[%clk 0:00:10]} 48. Kd2 {[%clk 0:00:15]}  Qf2+ {[%clk 0:00:10]} 49. Kc1 {[%clk 0:00:16]}  Qf1+ {[%clk 0:00:05]} 50. Kb2 {[%clk 0:00:16]}  Qe2+ {[%clk 0:00:05]} 51. Kb3 {[%clk 0:00:15]}  Qd1+ {[%clk 0:00:03]} 52. Ka2 {[%clk 0:00:14]}  Qa4+ {[%clk 0:00:03]} 53. Qa3 {[%clk 0:00:14]} 1-0


[Site "https://www.chess.com"]

[Event "Titled Tuesday Blitz May 03 Early 2022"]
[White "Nguyen Hong Nhung"]
[Black "Mirzoev, Azer"]
[WhiteFideId "12412201"]
[BlackFideId "13400304"]
[WhiteElo "1758"]
[BlackElo "2525"]
[Result "0-1"]
[Round "04"]
[TimeControl "180+1"]
[Date "2022.05.03"]
[WhiteClock "0:00:13"]
[BlackClock "0:00:34"]

1. e4 {[%clk 0:03:00]}  c5 {[%clk 0:02:59]} 2. Nc3 {[%clk 0:03:00]}  e6 {[%clk 0:02:59]} 3. f4 {[%clk 0:03:00]}  a6 {[%clk 0:02:59]} 4. a4 {[%clk 0:03:00]}  Nc6 {[%clk 0:02:58]} 5. Nf3 {[%clk 0:03:00]}  d5 {[%clk 0:02:58]} 6. d3 {[%clk 0:03:00]}  Nf6 {[%clk 0:02:55]} 7. g3 {[%clk 0:02:59]}  Be7 {[%clk 0:02:55]} 8. Bg2 {[%clk 0:02:58]}  dxe4 {[%clk 0:02:55]} 9. Nxe4 {[%clk 0:02:58]}  Nxe4 {[%clk 0:02:54]} 10. dxe4 {[%clk 0:02:59]}  Qxd1+ {[%clk 0:02:54]} 11. Kxd1 {[%clk 0:03:00]}  b6 {[%clk 0:02:50]} 12. c3 {[%clk 0:02:59]}  Bb7 {[%clk 0:02:50]} 13. Kc2 {[%clk 0:02:56]}  Na5 {[%clk 0:02:39]} 14. Re1 {[%clk 0:02:39]}  O-O {[%clk 0:02:37]} 15. Nd2 {[%clk 0:02:33]}  Rfd8 {[%clk 0:02:34]} 16. Nb3 {[%clk 0:02:30]}  Nc4 {[%clk 0:02:20]} 17. Bf1 {[%clk 0:02:28]}  Nd6 {[%clk 0:02:18]} 18. Nd2 {[%clk 0:02:15]}  Rac8 {[%clk 0:02:11]} 19. b3 {[%clk 0:02:11]}  Kf8 {[%clk 0:01:54]} 20. Bb2 {[%clk 0:02:09]}  g5 {[%clk 0:01:50]} 21. Bd3 {[%clk 0:01:55]}  gxf4 {[%clk 0:01:43]} 22. gxf4 {[%clk 0:01:56]}  Rc7 {[%clk 0:01:34]} 23. e5 {[%clk 0:01:42]}  Nf5 {[%clk 0:01:33]} 24. Nc4 {[%clk 0:01:29]}  b5 {[%clk 0:01:30]} 25. axb5 {[%clk 0:01:28]}  axb5 {[%clk 0:01:30]} 26. Ne3 {[%clk 0:01:27]}  Nxe3+ {[%clk 0:01:27]} 27. Rxe3 {[%clk 0:01:28]}  c4 {[%clk 0:01:23]} 28. bxc4 {[%clk 0:01:26]}  bxc4 {[%clk 0:01:23]} 29. Bxh7 {[%clk 0:01:21]}  Rcd7 {[%clk 0:01:20]} 30. Bc1 {[%clk 0:01:10]}  Bc5 {[%clk 0:01:16]} 31. Rg3 {[%clk 0:01:07]}  Ke7 {[%clk 0:01:09]} 32. Kb1 {[%clk 0:00:51]}  Rb8 {[%clk 0:01:04]} 33. Bb2 {[%clk 0:00:46]}  Rd2 {[%clk 0:01:01]} 34. Kc1 {[%clk 0:00:36]}  Rxh2 {[%clk 0:01:00]} 35. Ra5 {[%clk 0:00:35]}  Bf2 {[%clk 0:00:55]} 36. Ba3+ {[%clk 0:00:32]}  Kd7 {[%clk 0:00:53]} 37. Bd6 {[%clk 0:00:20]}  Bxg3 {[%clk 0:00:50]} 38. Bxb8 {[%clk 0:00:20]}  Bxf4+ {[%clk 0:00:50]} 39. Kb1 {[%clk 0:00:18]}  Rxh7 {[%clk 0:00:49]} 40. Ra7 {[%clk 0:00:18]}  Kc8 {[%clk 0:00:48]} 41. Bd6 {[%clk 0:00:19]}  f5 {[%clk 0:00:46]} 42. Ra4 {[%clk 0:00:16]}  Bd5 {[%clk 0:00:45]} 43. Rb4 {[%clk 0:00:15]}  Rh1+ {[%clk 0:00:44]} 44. Kb2 {[%clk 0:00:16]}  Rh2+ {[%clk 0:00:44]} 45. Ka3 {[%clk 0:00:15]}  Bc1+ {[%clk 0:00:42]} 46. Ka4 {[%clk 0:00:15]}  Ra2+ {[%clk 0:00:41]} 47. Kb5 {[%clk 0:00:16]}  Rb2 {[%clk 0:00:41]} 48. Rxb2 {[%clk 0:00:12]}  Bxb2 {[%clk 0:00:42]} 49. Kc5 {[%clk 0:00:12]}  f4 {[%clk 0:00:42]} 50. Kd4 {[%clk 0:00:12]}  f3 {[%clk 0:00:43]} 51. Ke3 {[%clk 0:00:13]}  Kd7 {[%clk 0:00:43]} 52. Bb4 {[%clk 0:00:12]}  Kc6 {[%clk 0:00:43]} 53. Kf2 {[%clk 0:00:13]}  Kb5 {[%clk 0:00:42]} 54. Ke3 {[%clk 0:00:13]}  Ka4 {[%clk 0:00:42]} 55. Bc5 {[%clk 0:00:12]}  Bxc3 {[%clk 0:00:42]} 56. Kf2 {[%clk 0:00:12]}  Bb4 {[%clk 0:00:42]} 57. Be3 {[%clk 0:00:12]}  c3 {[%clk 0:00:42]} 58. Bc1 {[%clk 0:00:12]}  Kb3 {[%clk 0:00:43]} 59. Ke3 {[%clk 0:00:13]}  c2 {[%clk 0:00:43]} 60. Kf2 {[%clk 0:00:12]}  Ba3 {[%clk 0:00:44]} 61. Bd2 {[%clk 0:00:12]}  c1=Q {[%clk 0:00:41]} 62. Bxc1 {[%clk 0:00:13]}  Bxc1 {[%clk 0:00:42]} 63. Ke1 {[%clk 0:00:13]}  Bb2 {[%clk 0:00:43]} 64. Kd2 {[%clk 0:00:13]}  Bxe5 {[%clk 0:00:44]} 65. Ke3 {[%clk 0:00:13]}  Bd6 {[%clk 0:00:45]} 66. Kd3 {[%clk 0:00:13]}  Bc5 {[%clk 0:00:40]} 67. Kd2 {[%clk 0:00:13]}  e5 {[%clk 0:00:40]} 68. Ke1 {[%clk 0:00:13]}  e4 {[%clk 0:00:41]} 69. Kd1 {[%clk 0:00:13]}  e3 {[%clk 0:00:41]} 70. Kc1 {[%clk 0:00:14]}  Bc4 {[%clk 0:00:39]} 71. Kd1 {[%clk 0:00:13]}  Bb4 {[%clk 0:00:39]} 72. Kc1 {[%clk 0:00:13]}  e2 {[%clk 0:00:39]} 73. Kb1 {[%clk 0:00:13]}  e1=Q# {[%clk 0:00:34]} 0-1


[Site "https://www.chess.com"]